lending/lending_fUSD_20240509
["ID","MTS","AMOUNT","RATE_DAILY","PERIOD"]
[326723942,1715284264775,-500.0,0.00041369,31]
[326723943,1715284264785,-500.0,0.00041369,31]
[326723944,1715284264795,-500.0,0.00041369,31]
[326723945,1715284264804,-825.1,0.00041369,31]
[326723946,1715284264813,-500.0,0.00041369,31]
[326723947,1715284264823,-500.0,0.00041369,31]
[326723948,1715284264832,-500.0,0.00041369,31]
[326723949,1715284264841,-500.0,0.00041369,31]
[326723950,1715284264850,-733.8,0.00041369,31]
[326723951,1715284264860,-500.0,0.00041369,31]
[326723952,1715284264870,-500.0,0.00041369,31]
[326723953,1715284264879,-2380.09,0.00041369,31]
[326723954,1715284264889,-3126.22,0.00041369,30]
[326723955,1715284264899,-500.0,0.00041369,31]
[326723956,1715284264909,-523.81,0.00041369,31]
[326723957,1715284264922,-500.0,0.00041369,31]
[326723958,1715284264932,-500.0,0.00041369,31]
[326723959,1715284264942,-500.0,0.00041369,31]
[326723960,1715284264951,-686.09,0.00041369,31]
[326723961,1715284264960,-500.0,0.00041369,31]
[326723962,1715284264970,-500.0,0.00041369,31]
[326723963,1715284264980,-501.41151305,0.00041369,31]
[326723964,1715284264991,-863.55,0.00041369,31]
[326723965,1715284265000,-620.29,0.00041369,31]
[326723966,1715284265012,-500.0,0.00041369,31]
[326723967,1715284265021,-500.0,0.00041369,31]
[326723968,1715284265031,-500.0,0.00041369,31]
[326723969,1715284265041,-947.5,0.00041369,31]
[326723970,1715284265050,-961.34,0.00041369,31]
[326723971,1715284265059,-873.21,0.00041369,31]
[326723972,1715284265070,-500.0,0.00041369,31]
[326723973,1715284265079,-500.0,0.00041369,31]
[326723974,1715284265088,-500.0,0.00041369,31]
[326723975,1715284265098,-500.0,0.00041369,31]
[326723976,1715284265107,-500.0,0.00041369,31]
[326723977,1715284265116,-500.0,0.00041369,31]
[326723978,1715284265126,-151.0,0.00041369,14]
[326723979,1715284265135,-151.0,0.00041369,14]
[326723980,1715284265144,-500.0,0.00041369,31]
[326723981,1715284265154,-500.0,0.00041369,31]
[326723982,1715284265163,-839.52,0.00041369,31]
[326723983,1715284265173,-509.74626087,0.00041369,31]
[326723984,1715284265183,-500.0,0.00041369,31]
[326723985,1715284265192,-500.0,0.00041369,2]
[326723986,1715284265202,-529.88,0.00041369,31]
[326723987,1715284265212,-509.52457293,0.00041369,31]
[326723988,1715284265222,-580.77,0.00041369,31]
[326723989,1715284265233,-500.0,0.00041369,31]
[326723990,1715284265242,-500.0,0.00041369,31]
[326723991,1715284265252,-1058.44,0.00041369,31]
[326723992,1715284265261,-1839.1,0.00041369,31]
[326723993,1715284265271,-500.0,0.00041369,31]
[326723994,1715284265280,-500.0,0.00041369,31]
[326723995,1715284265289,-185.80459573,0.00041369,31]
[326723996,1715284265299,-1338.17,0.00041369,31]
[326723997,1715284265309,-500.0,0.00041369,31]
[326723998,1715284265318,-281.08676293,0.00041369,31]
[326723999,1715284265328,-500.0,0.00041369,31]
[326724000,1715284265337,-500.0,0.00041369,31]
[326724001,1715284265347,-500.0,0.00041369,31]
[326724002,1715284265356,-885.42,0.00041369,31]
[326724003,1715284265366,-500.0,0.00041369,31]
[326724004,1715284265377,-1637.95,0.00041369,31]
[326724005,1715284265387,-500.0,0.00041369,31]
[326724006,1715284265396,-500.0,0.00041369,31]
[326724007,1715284265555,-500.0,0.00041369,31]
[326724008,1715284265566,-500.0,0.00041369,31]
[326724009,1715284265575,-616.46674543,0.00041369,31]
[326724010,1715284265584,-500.0,0.00041369,31]
[326724011,1715284265594,-500.0,0.00041369,31]
[326724012,1715284265603,-500.0,0.00041369,31]
[326724013,1715284265613,-1613.42,0.00041369,31]
[326724014,1715284265623,-528.3689721,0.00041369,31]
[326724015,1715284265632,-3415.12,0.00041369,31]
[326724016,1715284265641,-500.0,0.00041369,31]
[326724017,1715284265651,-1630.14,0.00041369,31]
[326724018,1715284265660,-549.36,0.00041369,31]
[326724019,1715284265669,-500.0,0.00041369,31]
[326724020,1715284265678,-566.98,0.00041369,31]
[326724021,1715284265687,-500.0,0.00041369,31]
[326724022,1715284265696,-500.0,0.00041369,31]
[326724023,1715284265706,-1472.57,0.00041369,31]
[326724024,1715284265716,-500.0,0.00041369,31]
[326724025,1715284265725,-500.0,0.00041369,31]
[326724026,1715284265734,-505.42637607,0.00041369,31]
[326724027,1715284265743,-500.0,0.00041369,31]
[326724028,1715284265753,-500.0,0.00041369,31]
[326724029,1715284265762,-719.12,0.00041369,31]
[326724030,1715284265772,-500.0,0.00041369,31]
[326724031,1715284265781,-500.0,0.00041369,31]
[326724032,1715284265791,-1338.55,0.00041369,30]
[326724033,1715284265800,-2379.3,0.00041369,90]
[326724034,1715284265810,-500.0,0.00041369,31]
[326724035,1715284265819,-500.0,0.00041369,31]
[326724036,1715284265829,-500.0,0.00041369,31]
[326724037,1715284265838,-500.0,0.00041369,31]
[326724038,1715284265848,-500.0,0.00041369,31]
[326724039,1715284265857,-500.0,0.00041369,31]
[326724040,1715284265866,-500.0,0.00041369,31]
[326724041,1715284265877,-1016.5,0.00041369,31]
[326724042,1715284265887,-500.0,0.00041369,31]
[326724043,1715284265897,-500.0,0.00041369,31]
[326724044,1715284265906,-503.12823826,0.00041369,31]
[326724045,1715284265919,-500.0,0.00041369,31]
[326724046,1715284265928,-1979.98,0.00041369,31]
[326724047,1715284265937,-500.0,0.00041369,31]
[326724048,1715284265947,-500.0,0.00041369,31]
[326724049,1715284265958,-503.33096411,0.00041369,31]
[326724050,1715284265967,-745.75,0.00041369,31]
[326724051,1715284265977,-500.0,0.00041369,31]
[326724052,1715284265986,-500.0,0.00041369,31]
[326724053,1715284265997,-500.0,0.00041369,31]
[326724054,1715284266007,-526.45,0.00041369,31]
[326724055,1715284266016,-500.0,0.00041369,31]
[326724056,1715284266025,-882.56,0.00041369,31]
[326724057,1715284266034,-500.0,0.00041369,31]
[326724058,1715284266044,-500.0,0.00041369,31]
[326724059,1715284266052,-500.0,0.00041369,31]
[326724060,1715284266061,-1256.94,0.00041369,31]
[326724061,1715284266070,-1000.0,0.00041369,31]
[326724062,1715284266080,-500.0,0.00041369,31]
[326724063,1715284266089,-511.14866508,0.00041369,31]
[326724064,1715284266098,-500.0,0.00041369,31]
[326724065,1715284266108,-751.0,0.00041369,31]
[326724066,1715284266118,-500.0,0.00041369,31]
[326724067,1715284266128,-500.0,0.00041369,31]
[326724068,1715284266137,-554.62590668,0.00041369,31]
[326724069,1715284266147,-500.0,0.00041369,31]
[326724070,1715284266156,-500.0,0.00041369,31]
[326724071,1715284266165,-379.06442041,0.00041369,31]
[326724072,1715284266175,-1209.71,0.00041369,31]
[326724073,1715284266184,-500.0,0.00041369,31]
[326724074,1715284266194,-696.11,0.00041369,31]
[326724075,1715284266203,-500.0,0.00041369,31]
[326724076,1715284266212,-500.0,0.00041369,31]
[326724077,1715284266221,-500.0,0.00041369,31]
[326724078,1715284266230,-507.42781746,0.00041369,31]
[326724079,1715284266240,-1233.7,0.00041369,31]
[326724080,1715284266249,-151.0,0.00041369,14]
[326724081,1715284266258,-500.0,0.00041369,31]
[326724082,1715284266268,-151.0,0.00041369,14]
[326724083,1715284266278,-500.0,0.00041369,31]
[326724084,1715284266287,-500.0,0.00041369,31]
[326724085,1715284266296,-1243.61,0.00041369,31]
[326724086,1715284266306,-1195.95,0.00041369,31]
[326724087,1715284266315,-500.0,0.00041369,31]
[326724088,1715284266325,-500.0,0.00041369,31]
[326724089,1715284266334,-500.0,0.00041369,31]
[326724090,1715284266343,-500.0,0.00041369,31]
[326724091,1715284266353,-500.0,0.00041369,31]
[326724092,1715284266362,-566.25,0.00041369,31]
[326724093,1715284266373,-566.88877835,0.00041369,31]
[326724094,1715284266382,-1169.68,0.00041369,31]
[326724095,1715284266392,-1260.04,0.00041369,31]
[326724096,1715284266401,-500.0,0.00041369,31]
[326724097,1715284266411,-500.0,0.00041369,31]
[326724098,1715284266420,-541.04,0.00041369,31]
[326724099,1715284266430,-500.0,0.00041369,31]
[326724100,1715284266439,-500.0,0.00041369,31]
[326724101,1715284266449,-2321.84,0.00041369,31]
[326724102,1715284266458,-1256.03,0.00041369,31]
[326724103,1715284266468,-1200.0,0.00041369,2]
[326724104,1715284266477,-934.31,0.00041369,31]
[326724105,1715284266486,-546.87,0.00041369,31]
[326724106,1715284266496,-500.0,0.00041369,31]
[326724107,1715284266506,-505.27729385,0.00041369,31]
[326724108,1715284266515,-500.0,0.00041369,31]
[326724109,1715284266525,-500.0,0.00041369,31]
[326724110,1715284266534,-500.0,0.00041369,31]
[326724111,1715284266543,-500.0,0.00041369,31]
[326724112,1715284266553,-500.0,0.00041369,31]
[326724113,1715284266571,-500.0,0.00041369,31]
[326724114,1715284266588,-1577.72,0.00041369,31]
[326724115,1715284266604,-1229.48,0.00041369,31]
[326724116,1715284266623,-500.0,0.00041369,31]
[326724117,1715284266642,-505.93,0.00041369,31]
[326724118,1715284266659,-659.81,0.00041369,31]
[326724119,1715284266676,-500.0,0.00041369,31]
[326724120,1715284266690,-452.63204511,0.00041369,31]
[326724121,1715284266705,-671.85,0.00041369,31]
[326724122,1715284266720,-500.0,0.00041369,31]
[326724123,1715284266738,-500.0,0.00041369,31]
[326724124,1715284266753,-1454.91,0.00041369,31]
[326724125,1715284266765,-719.25,0.00041369,31]
[326724126,1715284266783,-500.0,0.00041369,31]
[326724127,1715284266797,-510.98139222,0.00041369,31]
[326724128,1715284266812,-709.98,0.00041369,31]
[326724129,1715284266825,-500.0,0.00041369,31]
[326724130,1715284266839,-500.0,0.00041369,31]
[326724131,1715284266854,-1513.86,0.00041369,31]
[326724132,1715284266868,-500.0,0.00041369,31]
[326724133,1715284266888,-932.92,0.00041369,31]
[326724134,1715284266902,-500.0,0.00041369,31]
[326724135,1715284266921,-769.91,0.00041369,31]
[326724136,1715284266935,-1334.08,0.00041369,31]
[326724137,1715284266951,-500.0,0.00041369,31]
[326724138,1715284266967,-500.0,0.00041369,31]
[326724139,1715284266982,-151.0,0.00041369,14]
[326724140,1715284266999,-550.67,0.00041369,31]
[326724141,1715284267016,-151.0,0.00041369,14]
[326724142,1715284267032,-500.0,0.00041369,31]
[326724143,1715284267047,-500.0,0.00041369,31]
[326724144,1715284267062,-505.23,0.00041369,31]
[326724145,1715284267077,-597.49,0.00041369,31]
[326724146,1715284267092,-500.0,0.00041369,31]
[326724147,1715284267108,-611.43,0.00041369,31]
[326724148,1715284267123,-500.0,0.00041369,31]
[326724149,1715284267139,-532.24,0.00041369,31]
[326724150,1715284267154,-500.0,0.00041369,31]
[326724151,1715284267171,-500.0,0.00041369,31]
[326724152,1715284267185,-500.0,0.00041369,31]
[326724153,1715284267200,-823.13,0.00041369,31]
[326724154,1715284267214,-500.0,0.00041369,31]
[326724155,1715284267229,-1187.53,0.00041369,31]
[326724156,1715284267244,-500.0,0.00041369,31]
[326724157,1715284267257,-1247.18,0.00041369,31]
[326724158,1715284267271,-500.0,0.00041369,31]
[326724159,1715284267285,-508.84,0.00041369,31]
[326724160,1715284267299,-500.0,0.00041369,31]
[326724161,1715284267313,-1415.93,0.00041369,31]
[326724162,1715284267327,-500.0,0.00041369,31]
[326724163,1715284267341,-500.0,0.00041369,31]
[326724164,1715284267355,-500.0,0.00041369,31]
[326724165,1715284267369,-500.0,0.00041369,31]
[326724166,1715284267384,-1153.63,0.00041369,31]
[326724167,1715284267398,-500.0,0.00041369,31]
[326724168,1715284267412,-500.0,0.00041369,31]
[326724169,1715284267426,-526.79030839,0.00041369,31]
[326724170,1715284267441,-500.0,0.00041369,31]
[326724171,1715284267455,-865.47,0.00041369,31]
[326724172,1715284267469,-500.0,0.00041369,31]
[326724173,1715284267483,-500.0,0.00041369,31]
[326724174,1715284267497,-658.52,0.00041369,31]
[326724175,1715284267511,-500.0,0.00041369,31]
[326724176,1715284267525,-500.0,0.00041369,31]
[326724177,1715284267539,-676.54,0.00041369,31]
[326724178,1715284267553,-506.5272843,0.00041369,31]
[326724179,1715284267567,-500.0,0.00041369,31]
[326724180,1715284267581,-1052.23,0.00041369,31]
[326724181,1715284267595,-151.0,0.00041369,14]
[326724182,1715284267608,-500.0,0.00041369,31]
[326724183,1715284267623,-151.0,0.00041369,14]
[326724184,1715284267636,-500.0,0.00041369,31]
[326724185,1715284267651,-500.0,0.00041369,31]
[326724186,1715284267665,-500.0,0.00041369,7]
[326724187,1715284267679,-500.0,0.00041369,31]
[326724188,1715284267693,-794.94,0.00041369,31]
[326724189,1715284267707,-769.57,0.00041369,31]
[326724190,1715284267721,-914.58,0.00041369,31]
[326724191,1715284267734,-500.0,0.00041369,31]
[326724192,1715284267749,-2665.68,0.00041369,31]
[326724193,1715284267763,-500.0,0.00041369,31]
[326724194,1715284267776,-1985.26,0.00041369,31]
[326724195,1715284267790,-500.0,0.00041369,31]
[326724196,1715284267804,-500.0,0.00041369,31]
[326724197,1715284267817,-500.0,0.00041369,31]
[326724198,1715284267832,-170.04766555,0.00041369,31]
[326724199,1715284267846,-500.0,0.00041369,31]
[326724200,1715284267861,-500.0,0.00041369,31]
[326724201,1715284267875,-647.0,0.00041369,31]
[326724202,1715284267889,-563.36,0.00041369,31]
[326724203,1715284267903,-1914.93,0.00041369,31]
[326724204,1715284267920,-500.0,0.00041369,31]
[326724205,1715284267934,-500.0,0.00041369,31]
[326724206,1715284267943,-500.0,0.00041369,31]
[326724207,1715284267952,-419.00163599,0.00041369,31]
[326724208,1715284267963,-500.0,0.00041369,31]
[326724209,1715284267973,-650.07,0.00041369,31]
[326724210,1715284267982,-417.97090187,0.00041369,31]
[326724211,1715284267991,-510.06800425,0.00041369,31]
[326724212,1715284268002,-566.11,0.00041369,31]
[326724213,1715284268012,-500.0,0.00041369,31]
[326724214,1715284268022,-575.54,0.00041369,31]
[326724215,1715284268031,-504.34689356,0.00041369,31]
[326724216,1715284268040,-1454.4,0.00041369,31]
[326724217,1715284268049,-500.0,0.00041369,31]
[326724218,1715284268059,-941.24,0.00041369,31]
[326724219,1715284268068,-500.0,0.00041369,31]
[326724220,1715284268077,-997.23,0.00041369,31]
[326724221,1715284268086,-500.0,0.00041369,31]
[326724222,1715284268384,-500.0,0.00041369,31]
[326724223,1715284268406,-500.0,0.00041369,31]
[326724224,1715284268415,-559.98,0.00041369,31]
[326724225,1715284268424,-500.0,0.00041369,31]
[326724226,1715284268434,-500.0,0.00041369,31]
[326724227,1715284268443,-500.0,0.00041369,31]
[326724228,1715284268452,-500.0,0.00041369,31]
[326724229,1715284268461,-500.0,0.00041369,31]
[326724230,1715284268470,-500.0,0.00041369,31]
[326724231,1715284268479,-500.0,0.00041369,31]
[326724232,1715284268488,-500.0,0.00041369,31]
[326724233,1715284268498,-500.0,0.00041369,31]
[326724234,1715284268507,-500.0,0.00041369,31]
[326724235,1715284268516,-1037.79,0.00041369,31]
[326724236,1715284268525,-675.75,0.00041369,31]
[326724237,1715284268534,-500.0,0.00041369,31]
[326724238,1715284268543,-282.8,0.00041369,31]
[326724239,1715284268552,-2147.11,0.00041369,31]
[326724240,1715284268561,-734.18,0.00041369,31]
[326724241,1715284268570,-500.0,0.00041369,31]
[326724242,1715284268579,-500.0,0.00041369,31]
[326724243,1715284268588,-1545.81,0.00041369,31]
[326724244,1715284268598,-2955.61,0.00041369,31]
[326724245,1715284268607,-500.0,0.00041369,31]
[326724246,1715284268615,-500.0,0.00041369,31]
[326724247,1715284268625,-500.0,0.00041369,31]
[326724248,1715284268634,-500.0,0.00041369,31]
[326724249,1715284268643,-500.0,0.00041369,31]
[326724250,1715284268652,-500.0,0.00041369,31]
[326724251,1715284268662,-500.0,0.00041369,31]
[326724252,1715284268671,-576.72,0.00041369,31]
[326724253,1715284268680,-500.0,0.00041369,31]
[326724254,1715284268689,-500.0,0.00041369,31]
[326724255,1715284268699,-500.0,0.00041369,31]
[326724256,1715284268708,-1058.7,0.00041369,31]
[326724257,1715284268717,-500.0,0.00041369,31]
[326724258,1715284268727,-500.0,0.00041369,31]
[326724259,1715284268736,-500.0,0.00041369,31]
[326724260,1715284268745,-500.0,0.00041369,31]
[326724261,1715284268755,-627.57,0.00041369,31]
[326724262,1715284268764,-500.0,0.00041369,31]
[326724263,1715284268773,-500.0,0.00041369,31]
[326724264,1715284268782,-863.0,0.00041369,31]
[326724265,1715284268791,-500.0,0.00041369,31]
[326724266,1715284268800,-500.0,0.00041369,31]
[326724267,1715284268810,-500.0,0.00041369,31]
[326724268,1715284268819,-500.0,0.00041369,31]
[326724269,1715284268828,-501.6582485,0.00041369,31]
[326724270,1715284268837,-500.0,0.00041369,31]
[326724271,1715284268847,-500.0,0.00041369,31]
[326724272,1715284268856,-500.0,0.00041369,31]
[326724273,1715284268864,-580.11,0.00041369,31]
[326724274,1715284268873,-500.0,0.00041369,31]
[326724275,1715284268883,-500.0,0.00041369,31]
[326724276,1715284268891,-500.0,0.00041369,31]
[326724277,1715284268900,-500.0,0.00041369,31]
[326724278,1715284268910,-500.0,0.00041369,31]
[326724279,1715284268922,-500.0,0.00041369,31]
[326724280,1715284268931,-1111.38,0.00041369,31]
[326724281,1715284268941,-500.0,0.00041369,31]
[326724282,1715284268950,-500.0,0.00041369,31]
[326724283,1715284268961,-694.46,0.00041369,31]
[326724284,1715284268970,-237.08829055,0.00041369,120]
[326724285,1715284268979,-500.0,0.00041369,31]
[326724286,1715284268989,-500.0,0.00041369,31]
[326724287,1715284268998,-3862.76,0.00041369,31]
[326724288,1715284269011,-500.0,0.00041369,31]
[326724289,1715284269020,-500.0,0.00041369,31]
[326724290,1715284269029,-561.13,0.00041369,31]
[326724291,1715284269039,-649.01,0.00041369,31]
[326724292,1715284269048,-500.0,0.00041369,31]
[326724293,1715284269057,-737.9,0.00041369,31]
[326724294,1715284269066,-500.0,0.00041369,31]
[326724295,1715284269075,-500.0,0.00041369,31]
[326724296,1715284269086,-500.0,0.00041369,31]
[326724297,1715284269095,-500.0,0.00041369,31]
[326724298,1715284269104,-1342.43,0.00041369,31]
[326724299,1715284269113,-500.0,0.00041369,31]
[326724300,1715284269122,-151.0,0.00041369,14]
[326724301,1715284269133,-2004.21,0.00041369,31]
[326724302,1715284269142,-151.0,0.00041369,14]
[326724303,1715284269152,-500.0,0.00041369,31]
[326724304,1715284269161,-500.0,0.00041369,31]
[326724305,1715284269171,-500.0,0.00041369,31]
[326724306,1715284269180,-500.0,0.00041369,31]
[326724307,1715284269192,-500.0,0.00041369,31]
[326724308,1715284269202,-500.0,0.00041369,31]
[326724309,1715284269211,-500.0,0.00041369,31]
[326724310,1715284269220,-544.4,0.00041369,31]
[326724311,1715284269229,-500.0,0.00041369,31]
[326724312,1715284269238,-500.0,0.00041369,31]
[326724313,1715284269247,-500.0,0.00041369,31]
[326724314,1715284269257,-537.72344813,0.00041369,31]
[326724315,1715284269266,-500.0,0.00041369,31]
[326724316,1715284269275,-2184.2,0.00041369,31]
[326724317,1715284269285,-807.63,0.00041369,31]
[326724318,1715284269294,-500.0,0.00041369,31]
[326724319,1715284269303,-500.0,0.00041369,31]
[326724320,1715284269312,-500.0,0.00041369,31]
[326724321,1715284269321,-500.0,0.00041369,31]
[326724322,1715284269330,-500.0,0.00041369,31]
[326724323,1715284269339,-1120.97,0.00041369,31]
[326724324,1715284269348,-3004.04,0.00041369,31]
[326724325,1715284269358,-500.0,0.00041369,31]
[326724326,1715284269367,-716.86,0.00041369,31]
[326724327,1715284269376,-500.0,0.00041369,31]
[326724328,1715284269386,-500.0,0.00041369,31]
[326724329,1715284269395,-784.22,0.00041369,31]
[326724330,1715284269404,-899.54,0.00041369,31]
[326724331,1715284269413,-606.77,0.00041369,31]
[326724332,1715284269423,-500.0,0.00041369,31]
[326724333,1715284269433,-500.0,0.00041369,31]
[326724334,1715284269443,-500.0,0.00041369,31]
[326724335,1715284269452,-500.0,0.00041369,31]
[326724336,1715284269461,-523.82,0.00041369,31]
[326724337,1715284269471,-500.0,0.00041369,31]
[326724338,1715284269480,-500.0,0.00041369,31]
[326724339,1715284269490,-1016.31,0.00041369,31]
[326724340,1715284269499,-500.0,0.00041369,31]
[326724341,1715284269509,-500.0,0.00041369,31]
[326724342,1715284269519,-1333.36,0.00041369,31]
[326724343,1715284269527,-9548.06,0.00041369,31]
[326724344,1715284269536,-500.0,0.00041369,31]
[326724345,1715284269546,-500.0,0.00041369,31]
[326724346,1715284269555,-500.0,0.00041369,31]
[326724347,1715284269565,-500.0,0.00041369,31]
[326724348,1715284269574,-500.0,0.00041369,31]
[326724349,1715284269583,-500.0,0.00041369,31]
[326724350,1715284269592,-500.0,0.00041369,31]
[326724351,1715284269602,-500.0,0.00041369,31]
[326724352,1715284269611,-500.0,0.00041369,31]
[326724353,1715284269621,-500.0,0.00041369,31]
[326724354,1715284269631,-500.0,0.00041369,31]
[326724355,1715284269640,-500.0,0.00041369,31]
[326724356,1715284269650,-500.0,0.00041369,31]
[326724357,1715284269659,-1603.48,0.00041369,31]
[326724358,1715284269669,-500.0,0.00041369,31]
[326724359,1715284269679,-500.0,0.00041369,31]
[326724360,1715284269688,-500.0,0.00041369,31]
[326724361,1715284269697,-500.0,0.00041369,31]
[326724362,1715284269707,-500.0,0.00041369,31]
[326724363,1715284269716,-923.28,0.00041369,31]
[326724364,1715284269726,-151.0,0.00041369,14]
[326724365,1715284269735,-500.0,0.00041369,31]
[326724366,1715284269745,-257.389917,0.00041369,14]
[326724367,1715284269754,-500.0,0.00041369,31]
[326724368,1715284269764,-500.0,0.00041369,31]
[326724369,1715284269773,-4124.78,0.00041369,31]
[326724370,1715284269783,-151.0,0.00041369,14]
[326724371,1715284269792,-500.0,0.00041369,31]
[326724372,1715284269801,-151.0,0.00041369,14]
[326724373,1715284269811,-563.9585981,0.00041369,31]
[326724374,1715284269820,-570.71,0.00041369,31]
[326724375,1715284269830,-500.0,0.00041369,31]
[326724376,1715284269839,-465.05650362,0.00041369,31]
[326724377,1715284269848,-500.0,0.00041369,31]
[326724378,1715284269858,-500.0,0.00041369,31]
[326724379,1715284269868,-500.0,0.00041369,31]
[326724380,1715284269877,-500.0,0.00041369,31]
[326724381,1715284269886,-500.0,0.00041369,31]
[326724382,1715284269896,-500.0,0.00041369,31]
[326724383,1715284269905,-500.0,0.00041369,31]
[326724384,1715284269920,-500.0,0.00041369,31]
[326724385,1715284269930,-500.0,0.00041369,31]
[326724386,1715284269940,-1079.34,0.00041369,31]
[326724387,1715284269949,-544.18,0.00041369,31]
[326724388,1715284269961,-500.0,0.00041369,31]
[326724389,1715284269971,-954.73,0.00041369,31]
[326724390,1715284269980,-500.0,0.00041369,31]
[326724391,1715284269991,-1556.01,0.00041369,31]
[326724392,1715284270002,-500.0,0.00041369,31]
[326724393,1715284270012,-552.58,0.00041369,31]
[326724394,1715284270022,-500.0,0.00041369,31]
[326724395,1715284270032,-500.0,0.00041369,31]
[326724396,1715284270041,-500.0,0.00041369,31]
[326724397,1715284270050,-2930.31,0.00041369,31]
[326724398,1715284270059,-1303.06,0.00041369,31]
[326724399,1715284270069,-3583.5,0.00041369,31]
[326724400,1715284270078,-500.0,0.00041369,31]
[326724401,1715284270089,-445.761856,0.00041369,14]
[326724402,1715284270097,-500.0,0.00041369,31]
[326724403,1715284270107,-445.761856,0.00041369,14]
[326724404,1715284270116,-2580.39,0.00041369,31]
[326724405,1715284270125,-561.46,0.00041369,31]
[326724406,1715284270135,-182.46368803,0.00041369,31]
[326724407,1715284270144,-1597.71,0.00041369,31]
[326724408,1715284270154,-500.0,0.00041369,31]
[326724409,1715284270163,-500.0,0.00041369,31]
[326724410,1715284270172,-518.94755605,0.00041369,31]
[326724411,1715284270181,-500.0,0.00041369,31]
[326724412,1715284270190,-1807.11,0.00041369,31]
[326724413,1715284270199,-445.761856,0.00041369,14]
[326724414,1715284270208,-445.761856,0.00041369,14]
[326724415,1715284270217,-500.0,0.00041369,31]
[326724416,1715284270226,-500.0,0.00041369,31]
[326724417,1715284270235,-500.0,0.00041369,31]
[326724418,1715284270244,-8734.82,0.00041369,31]
[326724419,1715284270253,-500.0,0.00041369,31]
[326724420,1715284270262,-500.0,0.00041369,31]
[326724421,1715284270272,-841.4,0.00041369,31]
[326724422,1715284270281,-935.36,0.00041369,31]
[326724423,1715284270290,-500.0,0.00041369,31]
[326724424,1715284270299,-1933.26,0.00041369,31]
[326724425,1715284270309,-500.0,0.00041369,31]
[326724426,1715284270318,-500.0,0.00041369,31]
[326724427,1715284270327,-161.264947,0.00041369,14]
[326724428,1715284270337,-151.0,0.00041369,14]
[326724429,1715284270346,-161.264947,0.00041369,14]
[326724430,1715284270355,-151.0,0.00041369,14]
[326724431,1715284270365,-414.87138148,0.00041369,31]
[326724432,1715284270375,-5400.18,0.00041369,31]
[326724433,1715284270385,-603.34,0.00041369,31]
[326724434,1715284270394,-500.0,0.00041369,31]
[326724435,1715284270403,-500.0,0.00041369,31]
[326724436,1715284270413,-500.0,0.00041369,31]
[326724437,1715284270423,-161.264947,0.00041369,14]
[326724438,1715284270432,-500.0,0.00041369,31]
[326724439,1715284270442,-2415.02,0.00041369,31]
[326724440,1715284270451,-161.264947,0.00041369,14]
[326724441,1715284270460,-2476.49,0.00041369,31]